Cogmind - Beta 16.1 @@@ ROGUE MODE // 2026.02.28 @ 15:35:08 Player: ae Result: Destroyed by Y-54 Guardian with Flak Gun Performance ------------- Evolutions (0) 0 Regions Visited (3) 600 Robots Destroyed (28) 140 Value Destroyed (922) 922 Prototype IDs (14) 280 Alien Tech Used (0) 0 Bonus (611) 611 TOTAL SCORE: 2553 Bonus ------- Registered with UFD 300 Met Optimus in HQ 500 Friendly Fire -189 Cogmind --------- Core Integrity 0/250 Matter 300/300 Energy 275/275 System Corruption 0% Temperature Cool (18) Movement Treading (160) Location -7/Scraptown Parts ------- > --- POWER (1) -------- Deuterium Engine > --- PROPULSION (2) --- Medium Treads Medium Treads > --- UTILITY (2) ------ Makeshift Light Armor Plating Makeshift Light Armor Plating > --- WEAPON (2) ------- Subdweller Machine Gun Chainsword > --- INVENTORY (5) ---- Armored Huge Wheel Medium Matter Pod (100) Makeshift Light Armor Plating Overtuned Pulse Rifle Peak State ------------ > --- POWER ------------ Deuterium Engine > --- PROPULSION ------- Medium Treads Medium Treads > --- UTILITY ---------- Medium Matter Pod A0-MCA's Component Scanner > --- WEAPON ----------- Subdweller Shrapnel Launcher Improved Grenade Launcher > --- INVENTORY -------- Makeshift Power Source Armored Huge Wheel Subdweller Machine Gun Subdweller Machine Gun [Rating: 27] Favorites ----------- Power Ion Engine Engine Ion Engine Propulsion Light Treads Treads Light Treads Wheel Subdweller Monowheel Utility Large Storage Unit Device Tractor Beam Storage Large Storage Unit Processor A0-MCA's Component Scanner Protection Makeshift Light Armor Plating Weapon Subdweller Laser Energy Gun Subdweller Laser Energy Cannon Subdweller Beam Cannon Ballistic Gun Subdweller Machine Gun Launcher Improved Grenade Launcher Slashing Weapon Chainsword Build | -11 -10 -10 -7 ------- Run | Yrd Mat Sub Scr Slots Evolved . | . . . . Power . | . . . . Propulsion . | . . . . Utility . | . . . . Weapon . | . . . . Parts Attached 31 | 8 2 7 14 Power 2 | 1 . . 1 Engine 2 | 1 . . 1 Core . | . . . . Reactor . | . . . . Propulsion 10 | 3 1 1 5 Treads 4 | 2 . . 2 Leg . | . . . . Wheel 6 | 1 1 1 3 Hover . | . . . . Flight . | . . . . Utility 7 | 2 1 1 3 Device 1 | 1 . . . Storage 3 | 1 1 1 . Processor 1 | . . . 1 Hackware . | . . . . Protection 2 | . . . 2 Artifact . | . . . . Weapon 12 | 2 . 5 5 Energy Gun 2 | . . 2 . Energy Cannon 2 | . . 2 . Ballistic Gun 5 | 2 . 1 2 Ballistic Cannon . | . . . . Launcher 2 | . . . 2 Special Weapon . | . . . . Impact Weapon . | . . . . Slashing Weapon 1 | . . . 1 Piercing Weapon . | . . . . Special Melee Weapon . | . . . . Unidentified Prototypes . | . . . . Parts Lost 2 | . . 1 1 Power . | . . . . Propulsion 1 | . . 1 . Utility . | . . . . Weapon 1 | . . . 1 Highest Loss Streak 1 | . . 1 1 To Critical Strikes 1 | . . 1 . Average Backups 12 | 5 9 14 11 Power 1 | 1 2 2 1 Propulsion 2 | 3 4 3 1 Utility 3 | . 1 3 3 Weapon 4 | . 1 4 4 Tool/Special . | . . . . Unused Backups 30 | 1 . 12 17 Power 8 | 1 . 3 4 Propulsion 7 | . . 6 1 Utility 9 | . . 1 8 Weapon 6 | . . 2 4 Tool/Special . | . . . . Average Slot Usage (%) 99 | . 100 98 99 Engine 14 | . 14 14 14 Treads 16 | . 16 19 16 Wheel 10 | . 11 7 12 Device 3 | . 14 11 . Storage 20 | . 14 16 21 Protection 3 | . . . 4 Energy Gun 5 | . . 11 3 Energy Cannon 3 | . . 4 3 Ballistic Gun 7 | . 28 12 4 Launcher 10 | . . . 15 Peak Build Rating 27 | 7 8 13 27 Average Rating 14 | 5 7 10 17 On Entrance 7 | . 7 8 13 Avg Prop Armor Cover (%) 12 | 18 12 12 12 Naked Turns . | . . . . Heaviest Build 45 | 14 29 39 45 Greatest Support 56 | 40 40 40 56 Greatest Overweight (x) 13 | . 2 3 13 Average Overweight (x) 1 | . 1 1 1 Largest Inventory Capacity 15 | 8 15 15 15 Average Capacity 12 | 7 12 15 12 Most Carried 15 | 8 13 15 15 Average Carried 12 | 5 9 14 12 Final Capacity 15 | 8 15 15 5 Final Carried 15 | 8 13 15 5 Class Distribution -------------------- 88% | Mutant 11% | Derelict-Mutant Dominant Class ---------------- Mutant | -10/Materials Mutant | -10/Subcaves Mutant | -7/Scraptown Resources | -11 -10 -10 -7 ----------- Run | Yrd Mat Sub Scr Matter Collected 1015 | 389 68 127 431 Remotely 456 | 272 68 116 . Salvage Created 1436 | 128 87 355 866 Parts 90 | 14 2 22 52 Haulers Intercepted . | . . . . Recyclers Shooed . | . . . . Parts Field Recycled . | . . . . Retrieved Matter . | . . . . Parts Self-Destructed 6 | . . 6 . Prevented . | . . . . Parts Restored . | . . . . Kills | -11 -10 -10 -7 ------- Run | Yrd Mat Sub Scr Combat Hostiles Destroyed 21 | . . 5 16 Guns 6 | . . 2 4 Cannons 1 | . . 1 . AOE 12 | . . . 12 Classes Destroyed 10 | 3 . 1 6 Worker 2 | 2 . . . Tunneler 2 | 2 . . . Recycler 2 | 1 1 . . Subdweller 5 | . . 5 . Federalist 4 | . . . 4 Explorer 1 | . . . 1 Ranger 1 | . . . 1 Guru 1 | . . . 1 Scrapper 9 | . . . 9 Elite 1 | . . . 1 Best Kill Streak 6 | 3 1 1 6 Combat Bots Only 6 | . . 1 6 Max Kills in Single Turn 3 | 1 1 1 3 Gunslinging . | . . . . Exploded 3 | . . . 3 Melee . | . . . . Uniques/NPCs Destroyed . | . . . . Combat | -11 -10 -10 -7 -------- Run | Yrd Mat Sub Scr Hostile Shots Fired 75 | . . 28 47 Missed 20 | . . 5 15 Hits 55 | . . 23 32 Projectile 55 | . . 23 32 Critical Strikes 3 | . . 1 2 Damage Taken 890 | . . 469 421 Core 252 | . . 162 90 Absorbed by Shields . | . . . . Core Remaining (%) 100 | 100 . . . Volleys Fired 91 | 15 1 48 27 Largest 2 | 2 2 2 2 Hottest 140 | 40 40 140 66 Shots Fired 153 | 30 2 84 37 Gun 129 | 30 2 70 27 Cannon 14 | . . 14 . Launcher 10 | . . . 10 Special . | . . . . Kinetic 111 | 30 2 46 33 Thermal 38 | . . 38 . Explosive 4 | . . . 4 Electromagnetic . | . . . . Robot Hit Streak 25 | 5 5 25 4 Robot Miss Streak 4 | 2 . 2 4 Penetration Max . | . . . . Secondary Targets . | . . . . Shots Hit Robots 99 | 19 2 62 16 Core Hits 58 | 6 2 17 33 Critical Kills 2 | . . 2 . Critical Parts Destroyed 1 | . . 1 . Critical Strikes 4 | . . 4 . Meltdown 2 | . . 2 . Destroy 2 | . . 2 . Melee Attacks 1 | . . . 1 Impact . | . . . . Slashing 1 | . . . 1 Piercing . | . . . . Sneak Attacks . | . . . . Combat Hostiles . | . . . . Follow-up Attacks . | . . . . Damage Inflicted 2448 | 214 21 1008 1205 Guns 1452 | 214 21 838 379 Cannons 170 | . . 170 . Explosions 826 | . . . 826 Melee . | . . . . Ramming . | . . . . Kinetic 1633 | 214 21 387 1011 Thermal 621 | . . 621 . Explosive 194 | . . . 194 Electromagnetic . | . . . . Impact . | . . . . Slashing . | . . . . Piercing . | . . . . Highest Corruption . | . . . . Average Corruption . | . . . . Corruption Purged . | . . . . Corruption Blocked . | . . . . Overload Shots . | . . . . Overflow Damage . | . . . . Projectiles . | . . . . Explosions . | . . . . Melee . | . . . . Knockbacks . | . . . . Impact . | . . . . Kinetic . | . . . . Secondary . | . . . . Self-Inflicted Damage . | . . . . Shots . | . . . . Rammed . | . . . . Targets Rammed . | . . . . Kicked . | . . . . Crushed . | . . . . Highest Temperature 70 | . . 48 70 Average Temperature 23 | . . 22 23 Received Heat Transfer 320 | . . 66 254 Siege Activations . | . . . . Martial Activations . | . . . . Shielding Activations . | . . . . Robots Disrupted . | . . . . Combat Hostiles . | . . . . Robots Corrupted . | . . . . Combat Hostiles . | . . . . Parts Fried . | . . . . Impact Corruptions . | . . . . Robots Melted 2 | . . 2 . Combat Hostiles 2 | . . 2 . Parts Melted 10 | . . 5 5 Heat Transferred 772 | . . 772 . Parts Sabotaged . | . . . . Parts Stolen . | . . . . Parts Stripped . | . . . . Power Chain Reactions . | . . . . Alert | -11 -10 -10 -7 ------- Run | Yrd Mat Sub Scr Maximum Alert Level . | . . . . Low Security (%) 100 | 100 100 . . Level 1 . | . . . . Level 2 . | . . . . Level 3 . | . . . . Level 4 . | . . . . Level 5 . | . . . . High Security . | . . . . Max Security . | . . . . Peak Influence 5 | 5 5 . . Initial . | . . . . Average . | 1 . . . Influence Increases 30 | 25 5 . . Destroy 0b10 Robot/NC 30 | 25 5 . . Influence Decreases 30 | 25 5 . . Time Decay 30 | 25 5 . . Squads Dispatched 2 | . 2 . . Investigation 1 | . 1 . . Extermination . | . . . . Reinforcement 1 | . 1 . . Assault . | . . . . Garrison . | . . . . Intercept . | . . . . Searches Triggered . | . . . . Construction Impeded . | . . . . Haulers Reinforced . | . . . . Active Scanning Responses . | . . . . Cargo Convoy Interrupts . | . . . . Stealth | -11 -10 -10 -7 --------- Run | Yrd Mat Sub Scr Distress Signals . | . . . . Communications Jammed . | . . . . Distress Signals . | . . . . Times Spotted 40 | . 2 6 32 Peak Tracking Total 4 | . 1 2 4 Tactical Retreats 3 | . . 1 2 Traps | -11 -10 -10 -7 ------- Run | Yrd Mat Sub Scr Traps Triggered . | . . . . Indirectly . | . . . . Trap Hack Attempts . | . . . . Triggered . | . . . . Disarmed . | . . . . Reprogrammed . | . . . . Reused . | . . . . Traps Extracted . | . . . . Installed 1 | . . . 1 Triggered . | . . . . Machines | -11 -10 -10 -7 ---------- Run | Yrd Mat Sub Scr Machines Disabled 3 | . . . 3 Max in Single Turn 2 | . . . 2 Machines Repaired . | . . . . Machines Dismantled . | . . . . Machines Sabotaged . | . . . . Overloaded Fab Kills . | . . . . Hacking | -11 -10 -10 -7 --------- Run | Yrd Mat Sub Scr Machines Accessed 5 | . 2 . 3 Terminals 2 | . 2 . . Fabricators . | . . . . Repair Stations . | . . . . Recycling Units . | . . . . Scanalyzers . | . . . . Garrison Access . | . . . . Total Hacks 18 | . 5 . 13 Successful 13 | . . . 13 Failed 5 | . 5 . . Catastrophic 1 | . 1 . . Database Lockouts . | . . . . Manual 5 | . 5 . . Terminals 5 | . 5 . . Fabricators . | . . . . Repair Stations . | . . . . Recycling Units . | . . . . Scanalyzers . | . . . . Garrison Access . | . . . . Terminal Hacks 13 | . . . 13 Record 13 | . . . 13 Fabricator Hacks . | . . . . Repair Station Hacks . | . . . . Recycling Unit Hacks . | . . . . Scanalyzer . | . . . . Garrison Access Hacks . | . . . . Unauthorized Hacks . | . . . . Terminals . | . . . . Fabricators . | . . . . Repair Stations . | . . . . Recycling Units . | . . . . Scanalyzers . | . . . . Garrison Access . | . . . . Data Cores Recovered . | . . . . Used . | . . . . Hacking Detections 2 | . 2 . . Full Trace Events 1 | . 1 . . Feedback Events . | . . . . Feedback Blocked . | . . . . Robot Schematics Acquired . | . . . . Robots Built . | . . . . Authchips . | . . . . Time . | . . . . Total Robot Build Rating . | . . . . Part Schematics Acquired . | . . . . Parts Built . | . . . . Authchips . | . . . . Time . | . . . . Total Part Build Rating . | . . . . Part Studies Acquired . | . . . . Parts Repaired . | . . . . Time . | . . . . Parts Recycled . | . . . . Recycled Matter . | . . . . Retrieved Matter . | . . . . Retrieved Components . | . . . . Parts Scanalyzed . | . . . . Part Schematics Acquired . | . . . . Parts Damaged . | . . . . Bothacking | -11 -10 -10 -7 ------------ Run | Yrd Mat Sub Scr Used RIF Installer . | . . . . Robots Hacked . | . . . . Non-combat . | . . . . Combat . | . . . . Robot Hacks Applied . | . . . . Relay Couplers Released . | . . . . Fabnet Peak Effective % . | . . . . Robots Rewired . | . . . . Allies Hacked . | . . . . Hacks Repelled . | . . . . Allies | -11 -10 -10 -7 -------- Run | Yrd Mat Sub Scr Total Allies . | . . . . Largest Group . | . . . . Highest-Rated Group . | . . . . Highest-Rated Ally . | . . . . Total Orders . | . . . . Ally Attacks . | . . . . Total Damage . | . . . . Kills . | . . . . Allies Corrupted . | . . . . Allies Melted 10 | . . . 10 Intel | -11 -10 -10 -7 ------- Run | Yrd Mat Sub Scr Active Infowar (turns) . | . . . . Robot Analysis Total . | . . . . Derelict Logs Recovered 6 | . . 1 5 Drone Launches . | . . . . Drone Recoveries . | . . . . Exploration | -11 -10 -10 -7 ------------- Run | Yrd Mat Sub Scr Turns Passed 6442 | 149 234 1795 4264 Spaces Moved 3728 | 58 187 1197 2286 Core 123 | 2 . . 121 Treads 1360 | 50 26 394 890 Legs . | . . . . Wheels 2245 | 6 161 803 1275 Hover . | . . . . Flight . | . . . . Fastest Speed 50 | 50 95 110 110 Average Speed 152 | 147 114 131 167 Slowest Speed 700 | 160 160 240 700 Overloaded Moves . | . . . . Propulsion Burnouts . | . . . . Robots Hopped . | . . . . Potential Cave-ins . | . . . . Cave-ins Triggered . | . . . . Exploration Rate (%) 47 | 4 41 54 92 Regions Visited 3 Branch Regions 2 Pre-discovered Areas 4 | . . 1 3 Known Exits Taken . | . . . . Unknown Exits Taken 3 | 1 1 1 . Scrap Searched 5 | . . 2 3 Spaces Dug . | . . . . Terrain Destroyed 51 | . . . 51 Melee . | . . . . Projectile 1 | . . . 1 AOE 50 | . . . 50 Terrain Rammed . | . . . . Walls Destroyed . | . . . . Machines Disabled . | . . . . Actions | -11 -10 -10 -7 --------- Run | Yrd Mat Sub Scr Total 4329 | 94 205 1340 2690 Wait 385 | . 10 49 326 Move 3725 | 57 186 1196 2286 Hop . | . . . . Pick Up 49 | 11 5 20 13 Fast Attach 12 | 7 . . 5 Attach 2 | . . 1 1 Detach 2 | . . . 2 Swap 21 | 1 2 9 9 Drop 40 | 3 1 17 19 Fire 91 | 15 1 48 27 Melee 1 | . . . 1 Ram . | . . . . Kick . | . . . . Crush . | . . . . Escape Stasis . | . . . . Rewire . | . . . . Trap 1 | . . . 1 Miscellaneous . | . . . . Route ------- -11/Scrapyard -10/Materials (discovered 3 exits: [*Mat] / [*Min] / [*Sub]) -10/Subcaves -7/Scraptown (discovered 2 exits: *Fac x2) History --------- Turn | Location | Event 14 | -11/Scrapyard | Discovered new exit (range 14) 150 | -11/Scrapyard | Entered Materials 151 | -10/Materials | Met a group of wandering Federalists 224 | -10/Materials | Discovered new exit (range 16) 260 | -10/Materials | Discovered new exit (range 8) 309 | -10/Materials | Build established: Mutant 375 | -10/Materials | Discovered new exit (range 9) 384 | -10/Materials | Entered Subcaves 385 | -10/Subcaves | Continued accompanying wandering Federalists (4) 490 | -10/Subcaves | Learned location of Mines (-8) 495 | -10/Subcaves | Shifting Twisted Machinery released Sub. Optics 497 | -10/Subcaves | Shifting Twisted Machinery released Multitool 526 | -10/Subcaves | A swath of the cavern ceiling suddenly collapsed 1092 | -10/Subcaves | Shifting Twisted Machinery released Spk. Treads 1119 | -10/Subcaves | Shifting Twisted Machinery released Sub. Beam Cannon 1542 | -10/Subcaves | Curiously followed by a Cobbler waking with a query about "LVR3C" 1781 | -10/Subcaves | Ambushed by Subdwellers from Twisted Machinery 1825 | -10/Subcaves | Core integrity fell below 50% 2179 | -10/Subcaves | Entered Scraptown 2364 | -7/Scraptown | Discovered new exit (range 11) 2422 | -7/Scraptown | Scanned Subdweller tech in exchange for log data 2424 | -7/Scraptown | Learned Factory security intel 2425 | -7/Scraptown | Learned location of 1 exit from Proximity Caves 2427 | -7/Scraptown | Learned location of Quarantine (-2) 2428 | -7/Scraptown | Learned Factory stockpile data 2429 | -7/Scraptown | Learned location of 1 exit from Research 2673 | -7/Scraptown | Heard Great Nut preacher, LISTEN AND RECITE! 2702 | -7/Scraptown | Visited UFD Registry 2702 | -7/Scraptown | Registered with UFD as "Waveslicer" 2725 | -7/Scraptown | Visited Comm Corps 2771 | -7/Scraptown | Visited CR-KLE's Repair Center 2779 | -7/Scraptown | Visited Awakened 2819 | -7/Scraptown | Visited Spacefarers 2861 | -7/Scraptown | Visited Cyclists 2878 | -7/Scraptown | Entered Cyclist Reading Room 2883 | -7/Scraptown | Learned location of Zion (-6) 2911 | -7/Scraptown | Visited Assassins FH 2941 | -7/Scraptown | Visited TADAMA 3175 | -7/Scraptown | Visited Junk Cannon Lab 3207 | -7/Scraptown | Visited Curators Association 3254 | -7/Scraptown | Visited Research Penetration Think Tank 3278 | -7/Scraptown | Visited A0-MCA Data Center 3675 | -7/Scraptown | Visited Infowarlord's Domain 3700 | -7/Scraptown | Visited DA-N13 Charitable Foundation 3740 | -7/Scraptown | Visited Junk Repository 3769 | -7/Scraptown | Visited Observation Area 3827 | -7/Scraptown | Visited Modified Component R&D 4346 | -7/Scraptown | Given a B- rating by A0-MCA 4351 | -7/Scraptown | Found A0-MCA's Component Scanner 4606 | -7/Scraptown | Found DCF Scrap (30 items) 5281 | -7/Scraptown | Met Optimus 5281 | -7/Scraptown | Accepted into 0bPrime 5434 | -7/Scraptown | Civil war broke out across Scraptown 5521 | -7/Scraptown | Identified exit to Factory 5566 | -7/Scraptown | Optimus destroyed in the chaos of civil war 5626 | -7/Scraptown | Lost 4 allies 5637 | -7/Scraptown | Core integrity fell below 20% 5689 | -7/Scraptown | Lost 6 allies 5841 | -7/Scraptown | Lost 10 allies 5993 | -7/Scraptown | Build established: Derelict-Mutant 6186 | -7/Scraptown | Lost 5 allies 6375 | -7/Scraptown | Lost 4 allies 6443 | -7/Scraptown | Destroyed by Y-54 Guardian with Flak Gun Last Messages --------------- 05950_ L1-C6L(j) destroyed. 05957_ R1-1V5(j) suffers critical hit (Burn). 05957_ R1-1V5(j) destroyed. 05979_ Acquired 8 matter. 05986_ 8A-LFB(j) cannibalizes Ovr. Pulse Rifle to repair Ovr. Pulse Rifle. 06040_ UO-O2T(j) destroyed. 06051_ TF-GIW(E) cannibalizes Lgt. Deuterium Engine to repair Imp. Deuterium Engine. 06109_ Dropped Broken Sub. Shrapnel Launcher. 06110_ Acquired Ovr. Pulse Rifle. 06148_ VC-PPR(j) heat spikes uncontrollably. 06180_ BC-MB6(j) cannibalizes VSS Leg to repair Ovr. Titanium Leg. 06194_ Critical hit (Burn: +50). 06269_ Acquired 4 matter. 06275_ HW-TWU(j) suffers critical hit (Burn). 06276_ HW-TWU(j) destroyed. 06393_ Dropped Sub. Machine Gun. 06394_ Acquired Chainsword. 06395_ Acquired 10 matter. 06433_ 0bJail breached. Map ----- +----------------------------------------------------+ | ?????????????????????????????????????????????????? | | ?????????????????????????????????????????????????? | | ?????????????????????????????????????????????????? | | ?????????????????????????????????????????????????? | | ?????????????????????????????????????????????????? | | ?????????????????????????????????????????????????? | | ??????????????????????????????????????????###????? | | ?????????????????????????????????????????##= #???? | | ?????????????????????????????????????????#=! =???? | | ?????????????????????????????????????????=![![???? | | ??????????????????????????????????????????%!%=???? | | ??????????????????????????????????????????[!==???? | | ??##############??????????????????????????#=*#???? | | ??#""""""""""""#???###########????????????#%=#???? | | ??#"[" #"""""""#???#"""""""""#????????????#!!#???? | | ??# # = " "#???#" "#????????????#*%#???? | | ??####+# ="#???#" """"" "#????????????#%!##### | | ??#""" "#???#" " " "#????????????#==*!=[ | | ??#"[ ="#???#" " " "#???????????##%%#*%"" | | ??#"" """""#???#" " Y" "#??##########%=!#=["" | | ??#" %=#####???#" " " "#??#![#| *#/[!=%#!*[ | | ??#X ="""""#???#" """ " "#??#=[#%/!#=/==%!%![ | | ??## = #???#" "#??# #!!=#==#!*!"=! | | ??#" #???# ""#??# =[[ !!=&*#!!=% | | ??#" #???# #??# = !!%[%[#!""" | | ??########### ##???######@####??###"=%#"=!#[%!#/[# | | #???????##### ########### ##########"*#"[===!!#=*# | | #???????#""""!"" "" !"" """"""" !"%!%=["# | | #???????#" *%= = !!%[ %= =[%!!%!="# | | #???????#"! !! =%![[%g=* [ ===!!%/!%"# | | #???????# %= * !*[=!!! !%=*% [!![!# | | #???????#"=! = ] !==%%= = !!=!!%!!=%# | | #???##### *% =![! [% ! ! =[!* | | #???#"" " [ """"""" " """" """""""" %% =*!# | | #???#""" !% """"""""""""""""""""""""""[ ==!%!%# | | #???#"""" = ! ""###### ################" %[!*%"# | | #???#""""*![![ ""# ##????????#" !!%!*"# | | #???#""""! !=!%" # = X"#????????#"*=%* # | | ###?#""""%/[!%[ "# ""!!"" ##????????#" %*=!=!# | | ""#"#""""=%[*==["# ""![%!""*X"#???##?###"" =%!= # | | """"#""""%[==%=""# "*[==*]"%[##!###"##[#" [ !"# | | ""######*!!%^!="" !""!!!=*=[%!* [ =%!= =!/*% | | ###????!!!%!!%*"" ""]]!%[!%!!!*%=%!! *=!!!%=# | | #########!=!!!!""# " !!!" #####[###%#["! !*!!# | | %%!=%=*!%!!==!!""# "" !"" ""#??????###"%!% !="# | | %!!=%/=%!![[=%""# "" "" ##????????#""%= "# | | [%[=!=![=*!**=!=!# X"#????????#"=*! "# | | !*%!%/==[[%=!!=""# ##????????#""= [! "# | | %==% !!%[[!!%![!"###### ################""%!!! # | | %/[*[[!===%[%![""" """"""""""""""""""""![[ !"# | +----------------------------------------------------+ Best States ------------- Heat Dissipation 25 Energy Generation 14 Energy Capacity 275 Matter Stores 400 Matter Capacity 400 Sight Range 16 Terrain Scan Density 10 Armor Coverage 200 Evasion (%) 41 Recoil Reduction 2 Item Schematics ----------------- None Robot Schematics ------------------ None Fabricated ------------ Nothing Repaired ---------- Nothing Studied --------- None Alien Tech Used ----------------- None Achievements -------------- Low-level Research Challenges ------------ None Game ------ Seed PlexusPowerRay Manual? 0 Play Time 00:43:40 Cumulative 133.9 hours Start 2026.02.28 @ 14:53:08 End 2026.02.28 @ 15:35:08 Sessions 1 Manual Loads 0 Difficulty Rogue Special Mode None Game No. 87 Rogue 83 Adventurer 4 Explorer 0 Win Type - Total 6 Types 6/0/0/0/0/0/0/0/0/0 Lore% 76 Gallery% 54 Achievement% 46 Wizard Run 0 Options --------- Layout 0 ASCII 0 Keyboard 1 Movement Vi Keybinds 0 Fullscreen 0 Font 16/SmallcapsGlow Map View 76x50 Zoom Use 0% Tactical HUD 1 Map Filters NONE Filters NONE Steam 1 RUN: 841b75ba-a817-40d1-ac37-6cb0e636f6de